[Event "*** Titled Tuesday Blitz"]
[Site "Chess.com"]
[Date "2021.02.02"]
[Round "7"]
[White "AlexTriapishko"]
[Black "vugarrasulov"]
[Result "0-1"]
[WhiteElo "2900"]
[BlackElo "2757"]
[TimeControl "180+1"]
[EndTime "11:19:54 PST"]
[Termination "vugarrasulov won on time"]

1. Nf3 {[%clk 0:03:00.9]} 1... g6 {[%clk 0:03:00.9]} 2. d4 {[%clk 0:02:51.9]}
2... Bg7 {[%clk 0:03:01]} 3. Nc3 {[%clk 0:02:52.8]} 3... d6 {[%clk 0:03:00.6]}
4. e4 {[%clk 0:02:50.4]} 4... a6 {[%clk 0:03:00.9]} 5. Be3 {[%clk 0:02:46.5]}
5... b5 {[%clk 0:03:00.7]} 6. a4 {[%clk 0:02:41.4]} 6... b4 {[%clk 0:02:59.9]}
7. Nd5 {[%clk 0:02:42]} 7... a5 {[%clk 0:02:55.8]} 8. c3 {[%clk 0:02:40.6]} 8...
e6 {[%clk 0:02:55.3]} 9. Nf4 {[%clk 0:02:39.1]} 9... Bb7 {[%clk 0:02:51.7]} 10.
Bb5+ {[%clk 0:02:32.5]} 10... Nd7 {[%clk 0:02:48.8]} 11. Qb3 {[%clk 0:02:14.5]}
11... Nf6 {[%clk 0:02:39.7]} 12. cxb4 {[%clk 0:01:42.8]} 12... axb4 {[%clk
0:02:40.6]} 13. Qxb4 {[%clk 0:01:42.3]} 13... Bxe4 {[%clk 0:02:37.3]} 14. Ne5
{[%clk 0:01:03.2]} 14... O-O {[%clk 0:02:25]} 15. Nc6 {[%clk 0:00:56.9]} 15...
Bxc6 {[%clk 0:02:21.4]} 16. Bxc6 {[%clk 0:00:56.8]} 16... Rb8 {[%clk 0:02:22.2]}
17. Qc4 {[%clk 0:00:53.7]} 17... e5 {[%clk 0:02:21.8]} 18. Ne2 {[%clk
0:00:43.7]} 18... exd4 {[%clk 0:02:20.2]} 19. Bxd4 {[%clk 0:00:44.6]} 19... Nh5
{[%clk 0:01:32.6]} 20. Bxg7 {[%clk 0:00:38.1]} 20... Nxg7 {[%clk 0:01:33.5]} 21.
O-O {[%clk 0:00:19.5]} 21... Rxb2 {[%clk 0:01:31]} 22. Nd4 {[%clk 0:00:12.2]}
22... Ne5 {[%clk 0:01:31.2]} 23. Qc3 {[%clk 0:00:12.2]} 23... Qb8 {[%clk
0:01:02]} 24. Bb5 {[%clk 0:00:12.4]} 24... Rxb5 {[%clk 0:00:55.6]} 25. axb5
{[%clk 0:00:13.3]} 25... Qd8 {[%clk 0:00:49.9]} 26. Ra7 {[%clk 0:00:10.9]} 26...
Nh5 {[%clk 0:00:42.8]} 27. g3 {[%clk 0:00:06.4]} 27... Nf6 {[%clk 0:00:41.6]}
28. Qxc7 {[%clk 0:00:05.8]} 28... Qe8 {[%clk 0:00:39.7]} 29. Qe7 {[%clk
0:00:06]} 29... Qb8 {[%clk 0:00:39.7]} 30. Nc6 {[%clk 0:00:04.3]} 30... Qxb5
{[%clk 0:00:36.4]} 31. Nxe5 {[%clk 0:00:04.3]} 31... Qxe5 {[%clk 0:00:37.2]} 32.
Qxe5 {[%clk 0:00:04.7]} 32... dxe5 {[%clk 0:00:38.1]} 33. Rd1 {[%clk 0:00:04.6]}
33... Kg7 {[%clk 0:00:35.6]} 34. Kg2 {[%clk 0:00:04.6]} 34... h5 {[%clk
0:00:35.9]} 35. Rc1 {[%clk 0:00:05]} 35... e4 {[%clk 0:00:33.7]} 36. Rcc7 {[%clk
0:00:04.7]} 36... e3 {[%clk 0:00:34.2]} 37. f3 {[%clk 0:00:02.2]} 37... Nd5
{[%clk 0:00:31.3]} 38. Rd7 {[%clk 0:00:02.6]} 38... Nb4 {[%clk 0:00:29.6]} 39.
Kf1 {[%clk 0:00:02.3]} 39... Nc6 {[%clk 0:00:21.7]} 40. Ra2 {[%clk 0:00:02.8]}
40... Ne5 {[%clk 0:00:21.8]} 41. Re7 {[%clk 0:00:03]} 41... Kf6 {[%clk
0:00:21.5]} 42. Rea7 {[%clk 0:00:02]} 42... Nxf3 {[%clk 0:00:21.6]} 43. Re2
{[%clk 0:00:02.1]} 43... Re8 {[%clk 0:00:20.8]} 44. Ra3 {[%clk 0:00:02.6]} 44...
Nd2+ {[%clk 0:00:21]} 45. Kg2 {[%clk 0:00:02.5]} 45... Nc4 {[%clk 0:00:21.5]}
46. Rc3 {[%clk 0:00:03]} 46... Re4 {[%clk 0:00:22]} 47. Kf3 {[%clk 0:00:03.1]}
47... Ke5 {[%clk 0:00:21.5]} 48. Rb3 {[%clk 0:00:03.1]} 48... Nd2+ {[%clk
0:00:21.3]} 49. Rxd2 {[%clk 0:00:03.4]} 49... exd2 {[%clk 0:00:22.2]} 50. Rb5+
{[%clk 0:00:03.6]} 50... Kd6 {[%clk 0:00:20.2]} 51. Kxe4 {[%clk 0:00:01.6]}
51... d1=Q {[%clk 0:00:19.8]} 0-1

[Event "*** Titled Tuesday Blitz"]
[Site "Chess.com"]
[Date "2021.02.02"]
[Round "7"]
[White "CM_rui"]
[Black "Brave_spirit12"]
[Result "1-0"]
[WhiteElo "2374"]
[BlackElo "2492"]
[TimeControl "180+1"]
[EndTime "11:19:55 PST"]
[Termination "CM_rui won by checkmate"]

1. e4 {[%clk 0:03:00.9]} 1... e6 {[%clk 0:02:56.4]} 2. d4 {[%clk 0:03:00.2]}
2... d5 {[%clk 0:02:57.3]} 3. Nc3 {[%clk 0:03:00.4]} 3... Nf6 {[%clk 0:02:57.3]}
4. e5 {[%clk 0:03:00.3]} 4... Nfd7 {[%clk 0:02:57.5]} 5. Nf3 {[%clk 0:02:58.4]}
5... c5 {[%clk 0:02:57.9]} 6. Ne2 {[%clk 0:02:59]} 6... Nc6 {[%clk 0:02:57.8]}
7. c3 {[%clk 0:02:59.6]} 7... f6 {[%clk 0:02:58]} 8. exf6 {[%clk 0:02:47.8]}
8... Qxf6 {[%clk 0:02:58.9]} 9. Be3 {[%clk 0:02:46.7]} 9... Bd6 {[%clk
0:02:58.5]} 10. Qd2 {[%clk 0:02:41.6]} 10... O-O {[%clk 0:02:57.5]} 11. O-O-O
{[%clk 0:02:28.8]} 11... cxd4 {[%clk 0:02:56]} 12. Nexd4 {[%clk 0:02:20.7]}
12... e5 {[%clk 0:02:52.3]} 13. Nb5 {[%clk 0:02:18.3]} 13... d4 {[%clk
0:02:40.5]} 14. Nxd6 {[%clk 0:02:09]} 14... Qxd6 {[%clk 0:02:41.4]} 15. Bc4+
{[%clk 0:02:02.2]} 15... Kh8 {[%clk 0:02:40.2]} 16. cxd4 {[%clk 0:01:59.7]}
16... exd4 {[%clk 0:02:34.5]} 17. Nxd4 {[%clk 0:01:56]} 17... Nde5 {[%clk
0:02:32.2]} 18. Bb3 {[%clk 0:01:52.1]} 18... Bg4 {[%clk 0:01:47.4]} 19. f3
{[%clk 0:01:52.1]} 19... Bh5 {[%clk 0:01:46]} 20. Kb1 {[%clk 0:01:36.3]} 20...
Bg6+ {[%clk 0:01:42.3]} 21. Ka1 {[%clk 0:01:36.6]} 21... a5 {[%clk 0:01:14.5]}
22. Qc3 {[%clk 0:01:19]} 22... a4 {[%clk 0:01:04.7]} 23. Bc2 {[%clk 0:00:53.8]}
23... Bxc2 {[%clk 0:00:39]} 24. Nxc2 {[%clk 0:00:52.2]} 24... Qg6 {[%clk
0:00:32.5]} 25. Rd2 {[%clk 0:00:46.5]} 25... Rac8 {[%clk 0:00:28.5]} 26. Rhd1
{[%clk 0:00:35.7]} 26... b5 {[%clk 0:00:26.2]} 27. Nb4 {[%clk 0:00:22.7]} 27...
Nxb4 {[%clk 0:00:20.5]} 28. Qxb4 {[%clk 0:00:22]} 28... Nc4 {[%clk 0:00:20.8]}
29. Rd3 {[%clk 0:00:04.5]} 29... a3 {[%clk 0:00:18.4]} 30. Bd4 {[%clk
0:00:02.8]} 30... axb2+ {[%clk 0:00:17.7]} 31. Bxb2 {[%clk 0:00:03.2]} 31...
Qxg2 {[%clk 0:00:16.4]} 32. Qc3 {[%clk 0:00:02.7]} 32... b4 {[%clk 0:00:07.5]}
33. Qd4 {[%clk 0:00:02.5]} 33... Nxb2 {[%clk 0:00:06]} 34. Qxb2 {[%clk
0:00:03.4]} 34... Rc2 {[%clk 0:00:05.9]} 35. Qb3 {[%clk 0:00:03.3]} 35... h6
{[%clk 0:00:03.4]} 36. Kb1 {[%clk 0:00:02.5]} 36... Re2 {[%clk 0:00:02.8]} 37.
Qxb4 {[%clk 0:00:02.1]} 37... Qg6 {[%clk 0:00:02.8]} 38. Qxf8+ {[%clk
0:00:01.3]} 38... Kh7 {[%clk 0:00:02.9]} 39. Qa3 {[%clk 0:00:02.2]} 39... Qb6+
{[%clk 0:00:02.9]} 40. Qb3 {[%clk 0:00:02.6]} 40... Qg6 {[%clk 0:00:03.2]} 41.
Ka1 {[%clk 0:00:02.6]} 41... Rxh2 {[%clk 0:00:03.5]} 42. Qc3 {[%clk 0:00:03.1]}
42... Qb6 {[%clk 0:00:03.3]} 43. Rd6 {[%clk 0:00:02.7]} 43... Qa7 {[%clk
0:00:03.5]} 44. Qd3+ {[%clk 0:00:03.1]} 44... Kg8 {[%clk 0:00:03.9]} 45. Rd8+
{[%clk 0:00:03.6]} 45... Kf7 {[%clk 0:00:04.5]} 46. Rd7+ {[%clk 0:00:04.3]}
46... Kf6 {[%clk 0:00:03.7]} 47. Rxa7 {[%clk 0:00:04.5]} 47... g5 {[%clk
0:00:04.6]} 48. Qd6+ {[%clk 0:00:04.7]} 48... Kf5 {[%clk 0:00:04.9]} 49. Qxh2
{[%clk 0:00:05.6]} 49... g4 {[%clk 0:00:04.8]} 50. Ra5+ {[%clk 0:00:06.5]} 50...
Kf6 {[%clk 0:00:05]} 51. Qxh6+ {[%clk 0:00:06.5]} 51... Ke7 {[%clk 0:00:05.9]}
52. Ra7+ {[%clk 0:00:07.1]} 52... Ke8 {[%clk 0:00:06.8]} 53. Qh8# {[%clk
0:00:07.6]} 1-0

[Event "*** Titled Tuesday Blitz"]
[Site "Chess.com"]
[Date "2021.02.02"]
[Round "7"]
[White "DenisQ"]
[Black "RaneshRatnesan"]
[Result "1-0"]
[WhiteElo "2643"]
[BlackElo "2193"]
[TimeControl "180+1"]
[EndTime "11:19:56 PST"]
[Termination "DenisQ won by resignation"]

1. Nf3 {[%clk 0:03:00.9]} 1... Nf6 {[%clk 0:02:59.7]} 2. c4 {[%clk 0:03:00.9]}
2... g6 {[%clk 0:02:57.6]} 3. Nc3 {[%clk 0:03:00.1]} 3... Bg7 {[%clk 0:02:57.7]}
4. g3 {[%clk 0:03:00]} 4... O-O {[%clk 0:02:56.9]} 5. Bg2 {[%clk 0:03:00.2]}
5... d6 {[%clk 0:02:56.6]} 6. O-O {[%clk 0:03:00.1]} 6... c6 {[%clk 0:02:57.2]}
7. e4 {[%clk 0:02:57.5]} 7... Qb6 {[%clk 0:02:57.8]} 8. d3 {[%clk 0:02:52.9]}
8... e5 {[%clk 0:02:54.1]} 9. Rb1 {[%clk 0:02:52.1]} 9... Qc7 {[%clk 0:02:51.3]}
10. h3 {[%clk 0:02:49.3]} 10... a5 {[%clk 0:02:49.4]} 11. Re1 {[%clk 0:02:48.5]}
11... Na6 {[%clk 0:02:49]} 12. a3 {[%clk 0:02:46.4]} 12... h6 {[%clk 0:02:35.6]}
13. Be3 {[%clk 0:02:44.2]} 13... Be6 {[%clk 0:02:35]} 14. b4 {[%clk 0:02:41.5]}
14... d5 {[%clk 0:02:28.8]} 15. exd5 {[%clk 0:02:33.4]} 15... cxd5 {[%clk
0:02:25.3]} 16. Nb5 {[%clk 0:02:28.9]} 16... Qb8 {[%clk 0:02:19.6]} 17. c5
{[%clk 0:02:00.3]} 17... d4 {[%clk 0:01:59.8]} 18. Bd2 {[%clk 0:01:54.9]} 18...
Ne8 {[%clk 0:02:00.2]} 19. bxa5 {[%clk 0:01:43.9]} 19... Bd5 {[%clk 0:01:41.1]}
20. Qc2 {[%clk 0:01:39.1]} 20... f6 {[%clk 0:01:27.4]} 21. Nxe5 {[%clk
0:01:24.4]} 21... Bxg2 {[%clk 0:01:25.4]} 22. Nxg6 {[%clk 0:01:11.5]} 22... Bxh3
{[%clk 0:01:25.5]} 23. Nxf8 {[%clk 0:01:06.7]} 23... Bxf8 {[%clk 0:01:26.4]} 24.
Qc4+ {[%clk 0:01:00.6]} 24... Kh8 {[%clk 0:01:23.1]} 25. Nxd4 {[%clk 0:00:54.9]}
25... Nxc5 {[%clk 0:01:02.4]} 26. Bb4 {[%clk 0:00:46.9]} 26... Qc7 {[%clk
0:00:48.6]} 27. Rbc1 {[%clk 0:00:42.7]} 27... Rc8 {[%clk 0:00:41]} 28. Kh2
{[%clk 0:00:29.5]} 28... Bg4 {[%clk 0:00:34.9]} 29. Bxc5 {[%clk 0:00:26.1]}
29... Bxc5 {[%clk 0:00:31.8]} 30. Qxc5 {[%clk 0:00:25.7]} 30... Qxc5 {[%clk
0:00:23.7]} 31. Rxc5 {[%clk 0:00:23.8]} 31... Rxc5 {[%clk 0:00:24.6]} 32. Rxe8+
{[%clk 0:00:23.8]} 32... Kg7 {[%clk 0:00:22.7]} 33. f3 {[%clk 0:00:20.5]} 33...
Rd5 {[%clk 0:00:16.6]} 34. Re4 {[%clk 0:00:15.4]} 34... Bd7 {[%clk 0:00:15.6]}
35. Kg2 {[%clk 0:00:14.2]} 35... f5 {[%clk 0:00:12.1]} 36. Rf4 {[%clk
0:00:13.3]} 36... Rxa5 {[%clk 0:00:12.4]} 37. Kf2 {[%clk 0:00:09.8]} 37... Rxa3
{[%clk 0:00:12.6]} 38. Nxf5+ {[%clk 0:00:08.5]} 38... Bxf5 {[%clk 0:00:13.5]}
39. Rxf5 {[%clk 0:00:09]} 39... Rxd3 {[%clk 0:00:14.1]} 40. Rb5 {[%clk
0:00:09.6]} 40... Rd7 {[%clk 0:00:12.6]} 41. g4 {[%clk 0:00:09.9]} 41... Rc7
{[%clk 0:00:10.1]} 42. Rb6 {[%clk 0:00:09.5]} 42... Rd7 {[%clk 0:00:09.3]} 43.
Kg3 {[%clk 0:00:10.1]} 43... Rf7 {[%clk 0:00:09.3]} 44. f4 {[%clk 0:00:09.9]}
44... Rc7 {[%clk 0:00:09.4]} 45. Kh4 {[%clk 0:00:10]} 45... Rd7 {[%clk
0:00:05.7]} 46. Kh5 {[%clk 0:00:08.4]} 46... Rd1 {[%clk 0:00:02.6]} 47. Rxb7+
{[%clk 0:00:06.7]} 47... Kg8 {[%clk 0:00:02.4]} 48. Kxh6 {[%clk 0:00:05.5]}
48... Rd6+ {[%clk 0:00:02.8]} 49. Kg5 {[%clk 0:00:05.7]} 49... Rd5+ {[%clk
0:00:03.3]} 50. f5 {[%clk 0:00:06.3]} 50... Rd6 {[%clk 0:00:04.2]} 1-0

[Event "*** Titled Tuesday Blitz"]
[Site "Chess.com"]
[Date "2021.02.02"]
[Round "7"]
[White "Kovalchuk94"]
[Black "Boninknights"]
[Result "1/2-1/2"]
[WhiteElo "2637"]
[BlackElo "2482"]
[TimeControl "180+1"]
[EndTime "11:19:57 PST"]
[Termination "Game drawn by agreement"]

1. e4 {[%clk 0:03:00.9]} 1... c5 {[%clk 0:02:58.9]} 2. Nf3 {[%clk 0:03:00.3]}
2... Nc6 {[%clk 0:02:58.8]} 3. d4 {[%clk 0:03:00.3]} 3... cxd4 {[%clk
0:02:58.8]} 4. Nxd4 {[%clk 0:03:01.2]} 4... e5 {[%clk 0:02:58.4]} 5. Nb5 {[%clk
0:03:01.2]} 5... d6 {[%clk 0:02:58.3]} 6. N1c3 {[%clk 0:03:01.2]} 6... a6 {[%clk
0:02:57.7]} 7. Na3 {[%clk 0:03:01.4]} 7... Be6 {[%clk 0:02:57.5]} 8. Nc4 {[%clk
0:03:01]} 8... Rc8 {[%clk 0:02:56.3]} 9. Ne3 {[%clk 0:02:54.9]} 9... Nd4 {[%clk
0:02:55.3]} 10. Ncd5 {[%clk 0:02:42]} 10... Bxd5 {[%clk 0:02:52.2]} 11. exd5
{[%clk 0:02:42.1]} 11... Ne7 {[%clk 0:02:39.3]} 12. Bd3 {[%clk 0:02:29.8]} 12...
g6 {[%clk 0:02:37]} 13. c3 {[%clk 0:01:45.3]} 13... Ndf5 {[%clk 0:02:32.4]} 14.
Nxf5 {[%clk 0:01:35.7]} 14... Nxf5 {[%clk 0:02:28.1]} 15. Qf3 {[%clk 0:01:31]}
15... Qd7 {[%clk 0:02:08.7]} 16. O-O {[%clk 0:01:24.5]} 16... Bg7 {[%clk
0:02:05.9]} 17. Qh3 {[%clk 0:01:09.6]} 17... Ne7 {[%clk 0:01:57.1]} 18. Qxd7+
{[%clk 0:00:56.6]} 18... Kxd7 {[%clk 0:01:55.7]} 19. c4 {[%clk 0:00:57.1]} 19...
f5 {[%clk 0:01:49.8]} 20. f3 {[%clk 0:00:56.7]} 20... e4 {[%clk 0:01:45.8]} 21.
fxe4 {[%clk 0:00:56.9]} 21... fxe4 {[%clk 0:01:45.5]} 22. Bxe4 {[%clk
0:00:48.6]} 22... Rxc4 {[%clk 0:01:43.5]} 23. Bf3 {[%clk 0:00:49.1]} 23... Bd4+
{[%clk 0:01:29.3]} 24. Kh1 {[%clk 0:00:48.6]} 24... Nf5 {[%clk 0:01:28.2]} 25.
Bg4 {[%clk 0:00:40.1]} 25... Rf8 {[%clk 0:01:26.5]} 26. Bh6 {[%clk 0:00:38.5]}
26... Rf7 {[%clk 0:01:23.3]} 27. Rab1 {[%clk 0:00:19.8]} 27... Kc7 {[%clk
0:01:14]} 28. Bd2 {[%clk 0:00:17.2]} 28... Kb8 {[%clk 0:01:07.3]} 29. Bxf5
{[%clk 0:00:09.9]} 29... Rxf5 {[%clk 0:01:05.6]} 30. Rxf5 {[%clk 0:00:09.5]}
30... gxf5 {[%clk 0:01:04.8]} 31. Rc1 {[%clk 0:00:10.1]} 31... Rc5 {[%clk
0:01:00.7]} 32. Rxc5 {[%clk 0:00:09.2]} 32... dxc5 {[%clk 0:00:59.9]} 33. b3
{[%clk 0:00:10.1]} 33... b5 {[%clk 0:00:59.6]} 34. g3 {[%clk 0:00:09.2]} 34...
Kc7 {[%clk 0:00:58.7]} 35. Bf4+ {[%clk 0:00:08.8]} 35... Kd7 {[%clk 0:00:58.6]}
36. Kg2 {[%clk 0:00:09.7]} 36... c4 {[%clk 0:00:57.6]} 37. bxc4 {[%clk
0:00:10.6]} 37... bxc4 {[%clk 0:00:57.5]} 38. Kf3 {[%clk 0:00:11.5]} 38... Bc5
{[%clk 0:00:52.2]} 39. Ke2 {[%clk 0:00:09.1]} 39... Bd6 {[%clk 0:00:49.9]} 40.
Be3 {[%clk 0:00:07.4]} 40... Be5 {[%clk 0:00:49.3]} 41. Bc5 {[%clk 0:00:07.5]}
41... h5 {[%clk 0:00:48.7]} 42. Kf3 {[%clk 0:00:05.2]} 42... c3 {[%clk
0:00:42.5]} 43. Ba3 {[%clk 0:00:04]} 43... h4 {[%clk 0:00:40.6]} 44. gxh4 {[%clk
0:00:03.9]} 44... Bxh2 {[%clk 0:00:40.3]} 45. h5 {[%clk 0:00:04.4]} 45... Be5
{[%clk 0:00:39.9]} 46. h6 {[%clk 0:00:04.8]} 46... Ke8 {[%clk 0:00:35.8]} 47. h7
{[%clk 0:00:04.3]} 47... Kf7 {[%clk 0:00:34.6]} 48. d6 {[%clk 0:00:04.8]} 48...
Kg7 {[%clk 0:00:32.6]} 49. d7 {[%clk 0:00:05.4]} 49... Bf6 {[%clk 0:00:31.5]}
50. Kf4 {[%clk 0:00:03.7]} 50... Kxh7 {[%clk 0:00:28.1]} 51. Kxf5 {[%clk
0:00:04.1]} 51... Bd8 {[%clk 0:00:24.2]} 52. Ke6 {[%clk 0:00:02.9]} 52... c2
{[%clk 0:00:21.6]} 53. Kd5 {[%clk 0:00:03]} 53... Kg6 {[%clk 0:00:20.8]} 54. Kc4
{[%clk 0:00:03.6]} 54... Kf5 {[%clk 0:00:20.1]} 55. Kd3 {[%clk 0:00:04]} 55...
Ke6 {[%clk 0:00:19.4]} 56. Kxc2 {[%clk 0:00:04.4]} 56... Kxd7 {[%clk 0:00:18.8]}
57. Kb3 {[%clk 0:00:05.3]} 57... Kc6 {[%clk 0:00:17.1]} 1/2-1/2

[Event "*** Titled Tuesday Blitz"]
[Site "Chess.com"]
[Date "2021.02.02"]
[Round "7"]
[White "Katheksis"]
[Black "GregShahade"]
[Result "1/2-1/2"]
[WhiteElo "2504"]
[BlackElo "2659"]
[TimeControl "180+1"]
[EndTime "11:19:58 PST"]
[Termination "Game drawn by repetition"]

1. d4 {[%clk 0:02:59.1]} 1... Nf6 {[%clk 0:02:59.7]} 2. Bf4 {[%clk 0:02:58]}
2... g6 {[%clk 0:02:59.8]} 3. Nc3 {[%clk 0:02:57.5]} 3... d5 {[%clk 0:03:00.1]}
4. e3 {[%clk 0:02:57.8]} 4... Bg7 {[%clk 0:02:59.6]} 5. Be2 {[%clk 0:02:55.2]}
5... c6 {[%clk 0:02:56.8]} 6. h4 {[%clk 0:02:55.6]} 6... h5 {[%clk 0:02:56.6]}
7. Nf3 {[%clk 0:02:55.5]} 7... Nbd7 {[%clk 0:02:45.8]} 8. Qd2 {[%clk 0:02:53.4]}
8... a5 {[%clk 0:02:45.3]} 9. Ne5 {[%clk 0:02:43.8]} 9... Nxe5 {[%clk 0:02:44]}
10. Bxe5 {[%clk 0:02:44.7]} 10... Kf8 {[%clk 0:02:44.2]} 11. O-O-O {[%clk
0:02:31.9]} 11... b5 {[%clk 0:02:37.5]} 12. f3 {[%clk 0:02:10.3]} 12... Nd7
{[%clk 0:02:27.6]} 13. Bxg7+ {[%clk 0:02:11.2]} 13... Kxg7 {[%clk 0:02:27.8]}
14. Bd3 {[%clk 0:01:59]} 14... Nb6 {[%clk 0:02:24.2]} 15. e4 {[%clk 0:01:52.6]}
15... b4 {[%clk 0:01:39.2]} 16. Ne2 {[%clk 0:01:50.7]} 16... dxe4 {[%clk
0:01:34.2]} 17. Bxe4 {[%clk 0:01:46.7]} 17... Nd5 {[%clk 0:01:27.8]} 18. Kb1
{[%clk 0:01:38.8]} 18... Qd6 {[%clk 0:01:26.4]} 19. g4 {[%clk 0:01:36.1]} 19...
Be6 {[%clk 0:01:13.7]} 20. Rdg1 {[%clk 0:01:21.6]} 20... hxg4 {[%clk 0:01:05.1]}
21. h5 {[%clk 0:01:18.5]} 21... f5 {[%clk 0:00:34.2]} 22. Qg5 {[%clk 0:01:00.1]}
22... Rh6 {[%clk 0:00:26.2]} 23. Bxd5 {[%clk 0:00:45.6]} 23... Bxd5 {[%clk
0:00:23.5]} 24. Nf4 {[%clk 0:00:31.6]} 24... Bxf3 {[%clk 0:00:22.8]} 25. Nxg6
{[%clk 0:00:24.3]} 25... Qf6 {[%clk 0:00:22.6]} 26. Qf4 {[%clk 0:00:17.7]} 26...
Bxh1 {[%clk 0:00:22]} 27. Rxh1 {[%clk 0:00:18.6]} 27... Qxg6 {[%clk 0:00:20.2]}
28. b3 {[%clk 0:00:18.9]} 28... Rxh5 {[%clk 0:00:18.8]} 29. Re1 {[%clk
0:00:19.4]} 29... Qf6 {[%clk 0:00:16.8]} 30. Qc7 {[%clk 0:00:20]} 30... Re8
{[%clk 0:00:16]} 31. d5 {[%clk 0:00:20.9]} 31... Kf8 {[%clk 0:00:12.1]} 32. dxc6
{[%clk 0:00:19.7]} 32... Rh6 {[%clk 0:00:11.8]} 33. Qd7 {[%clk 0:00:19.3]} 33...
Rh5 {[%clk 0:00:10.7]} 34. c7 {[%clk 0:00:18.6]} 34... Qc3 {[%clk 0:00:11]} 35.
Rd1 {[%clk 0:00:18.1]} 35... Rh2 {[%clk 0:00:10.7]} 36. Qxf5+ {[%clk 0:00:17.1]}
36... Qf6 {[%clk 0:00:06.3]} 37. c8=Q {[%clk 0:00:17.4]} 37... Rxc8 {[%clk
0:00:06.4]} 38. Qxc8+ {[%clk 0:00:17.7]} 38... Kf7 {[%clk 0:00:06.9]} 39. Qc4+
{[%clk 0:00:17.5]} 39... Kg7 {[%clk 0:00:03.8]} 40. Qxg4+ {[%clk 0:00:17.3]}
40... Qg6 {[%clk 0:00:04.4]} 41. Qd4+ {[%clk 0:00:17.2]} 41... Kh7 {[%clk
0:00:03.7]} 42. Qc5 {[%clk 0:00:13.1]} 42... Rh5 {[%clk 0:00:03.3]} 43. Qxe7+
{[%clk 0:00:12.8]} 43... Qg7 {[%clk 0:00:03.8]} 44. Qe4+ {[%clk 0:00:13.1]}
44... Qg6 {[%clk 0:00:04.3]} 45. Rd7+ {[%clk 0:00:13.2]} 45... Kh6 {[%clk
0:00:04.9]} 46. Qe3+ {[%clk 0:00:11.4]} 46... Rg5 {[%clk 0:00:05]} 47. Rd5
{[%clk 0:00:09.1]} 47... Kh5 {[%clk 0:00:05.4]} 48. Qxg5+ {[%clk 0:00:07.3]}
48... Qxg5 {[%clk 0:00:06.3]} 49. Rxg5+ {[%clk 0:00:08.1]} 49... Kxg5 {[%clk
0:00:06.8]} 50. c3 {[%clk 0:00:08.7]} 50... Kf4 {[%clk 0:00:06.2]} 51. c4 {[%clk
0:00:09.1]} 51... Ke4 {[%clk 0:00:06.2]} 52. Kc2 {[%clk 0:00:09.6]} 52... Kd4
{[%clk 0:00:06.7]} 53. Kd2 {[%clk 0:00:10.3]} 53... Ke4 {[%clk 0:00:07.3]} 54.
Ke2 {[%clk 0:00:09.7]} 54... Kd4 {[%clk 0:00:07.8]} 55. Kd2 {[%clk 0:00:05.3]}
55... Ke4 {[%clk 0:00:08.2]} 56. Ke1 {[%clk 0:00:05.6]} 56... Kd4 {[%clk
0:00:08.3]} 57. Kd2 {[%clk 0:00:05.5]} 1/2-1/2

[Event "*** Titled Tuesday Blitz"]
[Site "Chess.com"]
[Date "2021.02.02"]
[Round "7"]
[White "Djager97"]
[Black "HristosBanikas"]
[Result "0-1"]
[WhiteElo "2575"]
[BlackElo "2828"]
[TimeControl "180+1"]
[EndTime "11:19:59 PST"]
[Termination "HristosBanikas won by resignation"]

1. e4 {[%clk 0:03:00.9]} 1... c5 {[%clk 0:02:59.8]} 2. Nf3 {[%clk 0:03:01.4]}
2... d6 {[%clk 0:02:59.9]} 3. d4 {[%clk 0:03:02]} 3... cxd4 {[%clk 0:02:59.9]}
4. Nxd4 {[%clk 0:03:02.9]} 4... Nf6 {[%clk 0:02:59.8]} 5. Nc3 {[%clk 0:03:03.4]}
5... a6 {[%clk 0:02:59.9]} 6. h3 {[%clk 0:03:03.9]} 6... e6 {[%clk 0:02:59.9]}
7. g4 {[%clk 0:03:04.4]} 7... Be7 {[%clk 0:03:00.3]} 8. g5 {[%clk 0:03:04.2]}
8... Nfd7 {[%clk 0:03:00.8]} 9. Be3 {[%clk 0:03:04.5]} 9... b5 {[%clk
0:02:59.2]} 10. a3 {[%clk 0:03:05]} 10... Bb7 {[%clk 0:02:59.2]} 11. Qd2 {[%clk
0:03:02.2]} 11... Nc6 {[%clk 0:02:59.2]} 12. h4 {[%clk 0:02:58.5]} 12... O-O
{[%clk 0:02:58]} 13. O-O-O {[%clk 0:02:57.8]} 13... Nc5 {[%clk 0:02:57.8]} 14.
f3 {[%clk 0:02:57.6]} 14... Rb8 {[%clk 0:02:50.1]} 15. Nxc6 {[%clk 0:02:38.8]}
15... Bxc6 {[%clk 0:02:49.2]} 16. b4 {[%clk 0:02:38.3]} 16... Nd7 {[%clk
0:02:49]} 17. h5 {[%clk 0:02:32.1]} 17... a5 {[%clk 0:02:26.8]} 18. g6 {[%clk
0:02:22.1]} 18... axb4 {[%clk 0:02:25.8]} 19. axb4 {[%clk 0:02:22.7]} 19... Ne5
{[%clk 0:02:20.7]} 20. h6 {[%clk 0:02:12.2]} 20... fxg6 {[%clk 0:02:20.3]} 21.
hxg7 {[%clk 0:02:12.1]} 21... Rf7 {[%clk 0:02:07]} 22. f4 {[%clk 0:01:39.8]}
22... Nc4 {[%clk 0:01:57.9]} 23. Bxc4 {[%clk 0:01:38.6]} 23... bxc4 {[%clk
0:01:56.9]} 24. Bd4 {[%clk 0:01:26.1]} 24... Bf6 {[%clk 0:01:18.4]} 25. e5
{[%clk 0:01:17.3]} 25... dxe5 {[%clk 0:01:17]} 26. fxe5 {[%clk 0:01:18.2]} 26...
Bg5 {[%clk 0:01:14.9]} 27. Be3 {[%clk 0:01:16.4]} 27... Qxd2+ {[%clk 0:01:13.8]}
28. Bxd2 {[%clk 0:01:17.3]} 28... Bxd2+ {[%clk 0:01:11.6]} 29. Kxd2 {[%clk
0:01:17.1]} 29... Bxh1 {[%clk 0:01:11.2]} 30. Rxh1 {[%clk 0:01:18]} 30... Rxb4
{[%clk 0:01:10.2]} 31. Ne4 {[%clk 0:01:17.9]} 31... Kxg7 {[%clk 0:01:10]} 32.
Kc3 {[%clk 0:01:12.1]} 32... Rb5 {[%clk 0:01:01.4]} 33. Ng5 {[%clk 0:01:11.3]}
33... h5 {[%clk 0:00:51.3]} 34. Nxe6+ {[%clk 0:01:10.9]} 34... Kh6 {[%clk
0:00:51.4]} 35. Re1 {[%clk 0:01:05.4]} 35... Re7 {[%clk 0:00:49.6]} 36. Kxc4
{[%clk 0:01:03.5]} 36... Ra5 {[%clk 0:00:41.3]} 37. Kb4 {[%clk 0:01:04.1]} 37...
Rd5 {[%clk 0:00:38.4]} 38. Kc4 {[%clk 0:01:02.8]} 38... Rd2 {[%clk 0:00:38.4]}
39. Kc3 {[%clk 0:01:00.4]} 39... Rdd7 {[%clk 0:00:21.5]} 40. Nd4 {[%clk
0:00:55.3]} 40... Rd5 {[%clk 0:00:21.4]} 41. e6 {[%clk 0:00:52.8]} 41... h4
{[%clk 0:00:21.8]} 42. Kd3 {[%clk 0:00:52.2]} 42... h3 {[%clk 0:00:21.6]} 43. c4
{[%clk 0:00:51.8]} 43... Rh5 {[%clk 0:00:21.7]} 44. Rh1 {[%clk 0:00:31.2]} 44...
h2 {[%clk 0:00:21.4]} 45. c5 {[%clk 0:00:31.1]} 45... Kg5 {[%clk 0:00:17]} 46.
c6 {[%clk 0:00:29.7]} 46... Kf4 {[%clk 0:00:16.9]} 47. Kc4 {[%clk 0:00:07.1]}
47... Kg3 {[%clk 0:00:16.9]} 48. Nb5 {[%clk 0:00:05.8]} 48... Kg2 {[%clk
0:00:16.5]} 49. Re1 {[%clk 0:00:03.9]} 49... h1=Q {[%clk 0:00:16.5]} 50. Rxh1
{[%clk 0:00:02.7]} 50... Rxh1 {[%clk 0:00:17.4]} 51. c7 {[%clk 0:00:03.6]} 51...
Rc1+ {[%clk 0:00:17.4]} 52. Kd5 {[%clk 0:00:03.6]} 52... Rcxc7 {[%clk 0:00:14]}
0-1